fUSD/lending_fUSD_20241216
["ID","MTS","AMOUNT","RATE_DAILY","PERIOD"]
[345576220,1734364243302,-15905.06070325,0.00024872,10]
[345576221,1734364243312,-8648.19168927,0.00024873,10]
[345576222,1734364243321,-11380.06650186,0.00024873,10]
[345576223,1734364243330,-89294.62190268,0.00024873,10]
[345576224,1734364243339,-2821.77709856,0.00024873,10]
[345576225,1734364243349,-554.58958292,0.00024873,10]
[345576226,1734364243358,-1339.57909143,0.00024873,10]
[345576227,1734364243367,-345.10381796,0.00024873,10]
[345576228,1734364243377,-205.64190539,0.00024873,10]
[345576229,1734364243386,-200.0,0.00024874,10]
[345576230,1734364243396,-411.28381079,0.00024874,10]
[345576231,1734364243405,-59888.86224661,0.00024874,10]
[345576232,1734364243416,-818.23479736,0.00024874,10]
[345576233,1734364243426,-1482.48624096,0.00024874,10]
[345576234,1734364243438,-757.66746973,0.00024874,10]
[345576235,1734364243447,-200.0,0.00024874,10]
[345576236,1734364243456,-12362.36838691,0.00024874,10]
[345576237,1734364243465,-345.10381796,0.00024875,10]
[345576238,1734364243475,-200.0,0.00024875,10]
[345576239,1734364243484,-1223.01283555,0.00024875,10]
[345576240,1734364243493,-1244.96254348,0.00024875,10]
[345576241,1734364243503,-404.99428245,0.00024875,10]
[345576242,1734364243514,-10999.72122625,0.00024875,10]
[345576243,1734364243524,-89294.62190268,0.00024876,10]
[345576244,1734364243533,-623.08172558,0.00024876,10]
[345576245,1734364243542,-1500.0,0.00024876,2]
[345576246,1734364243552,-13344.19675426,0.00024876,10]
[345576247,1734364243561,-200.0,0.00024876,10]
[345576248,1734364243571,-18726.24962054,0.00024876,10]
[345576249,1734364243580,-411.28381079,0.00024876,10]
[345576250,1734364243590,-2821.77709856,0.00024876,10]
[345576251,1734364243599,-827.63650331,0.00024877,10]
[345576252,1734364243608,-849.73624369,0.00024877,10]
[345576253,1734364243617,-200.0,0.00024877,10]
[345576254,1734364243626,-17495.42008644,0.00024877,10]
[345576255,1734364243635,-757.66746973,0.00024877,10]
[345576256,1734364243644,-205.64190539,0.00024878,10]
[345576257,1734364243653,-200.0,0.00024878,10]
[345576258,1734364243662,-8648.19168927,0.00024879,10]
[345576259,1734364243680,-757.66746973,0.00024879,10]
[345576260,1734364243689,-1446.33178613,0.0002488,10]
[345576261,1734364243698,-89294.62190268,0.0002488,10]
[345576262,1734364243708,-416.06618069,0.0002488,10]
[345576263,1734364243717,-623.08172558,0.00024881,10]
[345576264,1734364243726,-2821.77709856,0.00024881,10]
[345576265,1734364243735,-574.64154533,0.00024881,10]
[345576266,1734364243745,-1482.48624096,0.00024881,10]
[345576267,1734364243754,-17495.42008644,0.00024881,10]
[345576268,1734364243763,-200.0,0.00024881,10]
[345576269,1734364243772,-693.44363447,0.00024882,10]
[345576270,1734364243781,-574.64154533,0.00024882,10]
[345576271,1734364243791,-6861.67106334,0.00024883,10]
[345576272,1734364243800,-25235.09458394,0.00024883,10]
[345576273,1734364243809,-42260.49925715,0.00024883,10]
[345576274,1734364243818,-1223.01283555,0.00024883,10]
[345576275,1734364243827,-42730.51467038,0.00024883,10]
[345576276,1734364243836,-3773.19290998,0.00024883,10]
[345576277,1734364243846,-1073.57041301,0.00024884,10]
[345576278,1734364243855,-42730.51467038,0.00024884,10]
[345576279,1734364243865,-71255.18191095,0.00024884,10]
[345576280,1734364243874,-827.63650331,0.00024884,10]
[345576281,1734364243883,-2821.77709856,0.00024884,10]
[345576282,1734364243892,-11380.06650186,0.00024885,10]
[345576283,1734364243901,-404.99428245,0.00024886,10]
[345576284,1734364243910,-230.92340581,0.00024886,10]
[345576285,1734364243921,-193.9280428,0.00024886,2]
[345576286,1734364243930,-161.07221609,0.00024886,2]
[345576287,1734364243939,-67564.87453317,0.00024886,10]
[345576288,1734364243948,-17495.42008644,0.00024886,10]
[345576289,1734364243957,-200.0,0.00024887,10]
[345576290,1734364243967,-3773.19290998,0.00024887,10]
[345576291,1734364243976,-404.99428245,0.00024887,10]
[345576292,1734364243985,-150.0,0.00024887,2]
[345576293,1734364243994,-25268.42791727,0.00024887,10]
[345576294,1734364244004,-1073.57041301,0.00024888,10]
[345576295,1734364244012,-215.63641293,0.00024888,10]
[345576296,1734364244022,-10999.72122625,0.00024888,10]
[345576297,1734364244031,-451.31272242,0.00024889,10]
[345576298,1734364244040,-71255.18191095,0.00024889,10]
[345576299,1734364244050,-230.92340581,0.00024889,10]
[345576300,1734364244058,-1500.0,0.00024889,2]
[345576301,1734364244067,-1244.96254348,0.0002489,10]
[345576302,1734364244076,-6861.67106334,0.0002489,10]
[345576303,1734364244086,-631.27282586,0.0002489,10]
[345576304,1734364244095,-1446.33178613,0.0002489,10]
[345576305,1734364244104,-411.28381079,0.0002489,10]
[345576306,1734364244113,-411.28381079,0.00024891,10]
[345576307,1734364244122,-8648.19168927,0.00024891,10]
[345576308,1734364244132,-230.92340581,0.00024891,10]
[345576309,1734364244142,-1446.33178613,0.00024891,10]
[345576310,1734364244151,-8648.19168927,0.00024891,10]
[345576311,1734364244160,-818.23479736,0.00024891,10]
[345576312,1734364244171,-1073.57041301,0.00024892,10]
[345576313,1734364244180,-25235.09458394,0.00024892,10]
[345576314,1734364244189,-1223.01283555,0.00024892,10]
[345576315,1734364244199,-15905.06070325,0.00024892,10]
[345576316,1734364244208,-6861.67106334,0.00024892,10]
[345576317,1734364244217,-205.64190539,0.00024892,10]
[345576318,1734364244227,-964.42438259,0.00024892,10]
[345576319,1734364244236,-554.58958292,0.00024892,10]
[345576320,1734364244246,-17571.74660673,0.00024892,10]
[345576321,1734364244256,-411.28381079,0.00024893,10]
[345576322,1734364244266,-234.91453106,0.00024893,10]
[345576323,1734364244277,-554.58958292,0.00024893,10]
[345576324,1734364244286,-12362.36838691,0.00024893,10]
[345576325,1734364244296,-416.06618069,0.00024894,10]
[345576326,1734364244306,-6360.86920256,0.00024894,2]
[345576327,1734364244317,-200.0,0.00024894,10]
[345576328,1734364244327,-67564.87453317,0.00024895,10]
[345576329,1734364244337,-210.04367445,0.00024895,10]
[345576330,1734364244347,-3773.19290998,0.00024895,10]
[345576331,1734364244356,-200.0,0.00024895,10]
[345576332,1734364244367,-59888.86224661,0.00024895,10]
[345576333,1734364244490,-574.64154533,0.00024895,10]
[345576334,1734364244500,-1073.57041301,0.00024895,10]
[345576335,1734364244509,-25268.42791727,0.00024896,10]
[345576336,1734364244519,-6360.86920254,0.00024897,2]
[345576337,1734364244528,-150.0,0.00024897,2]
[345576338,1734364244537,-6861.67106334,0.00024897,10]
[345576339,1734364244547,-631.27282586,0.00024897,10]
[345576340,1734364244556,-693.44363447,0.00024897,10]
[345576341,1734364244565,-200.0,0.00024897,10]
[345576342,1734364244574,-11380.06650186,0.00024898,10]
[345576343,1734364244583,-451.31272242,0.00024898,10]
[345576344,1734364244593,-1339.57909143,0.00024898,10]
[345576345,1734364244603,-6861.67106334,0.00024898,10]
[345576346,1734364244614,-67564.87453317,0.00024899,10]
[345576347,1734364244624,-42730.51467038,0.00024899,10]
[345576348,1734364244634,-687.71404149,0.00024899,10]
[345576349,1734364244643,-215.63641293,0.000249,10]
[345576350,1734364244652,-849.73624369,0.000249,10]
[345576351,1734364244661,-2886.0245,0.000249,2]
[345576352,1734364244672,-827.63650331,0.000249,10]
[345576353,1734364244682,-201.53260833,0.000249,7]
[345576354,1734364244692,-162.7639,0.000249,2]
[345576355,1734364244702,-4066.4858,0.000249,2]
[345576356,1734364244712,-1027.3015553,0.000249,2]
[345576357,1734364244723,-176.50499016,0.000249,2]
[345576358,1734364244732,-1116.45,0.000249,2]
[345576359,1734364244742,-1000.0,0.000249,45]
[345576360,1734364244752,-193.9280428,0.000249,2]
[345576361,1734364244761,-6360.86920254,0.000249,2]
[345576362,1734364244770,-1822.76719657,0.000249,2]
[345576363,1734364244779,-1822.83117488,0.000249,2]
[345576364,1734364244789,-176.68,0.000249,7]
[345576365,1734364244798,-1315.7747187,0.000249,2]
[345576366,1734364244808,-269.6811465,0.000249,2]
[345576367,1734364244817,-406.52281825,0.000249,2]
[345576368,1734364244826,-327.38841362,0.000249,2]
[345576369,1734364244836,-401.45,0.000249,31]
[345576370,1734364244845,-401.45,0.000249,31]
[345576371,1734364244854,-401.45,0.000249,31]
[345576372,1734364244863,-401.45,0.000249,31]
[345576373,1734364244872,-401.45,0.000249,31]
[345576374,1734364244882,-401.45,0.000249,31]
[345576375,1734364244891,-401.45,0.000249,31]
[345576376,1734364244901,-401.45,0.000249,31]
[345576377,1734364244910,-401.45,0.000249,31]
[345576378,1734364244922,-401.45,0.000249,31]
[345576379,1734364244931,-401.45,0.000249,31]
[345576380,1734364244940,-401.45,0.000249,31]
[345576381,1734364244949,-401.45,0.000249,31]
[345576382,1734364244959,-401.45,0.000249,31]
[345576383,1734364244968,-401.45,0.000249,31]
[345576384,1734364244977,-401.45,0.000249,31]
[345576385,1734364244986,-235.97050378,0.000249,2]
[345576386,1734364244995,-366.72121187,0.00024902,2]
[345576387,1734364245004,-150.0,0.00024904,2]
[345576388,1734364245013,-150.0,0.00024905,2]
[345576389,1734364245022,-150.0,0.00024914,2]
[345576390,1734364245031,-1500.0,0.00024915,2]
[345576391,1734364245040,-150.0,0.00024916,2]
[345576392,1734364245049,-150.0,0.00024917,2]
[345576393,1734364245058,-150.0,0.00024918,2]
[345576394,1734364245067,-150.0,0.00024918,2]
[345576395,1734364245076,-150.0,0.00024925,2]
[345576396,1734364245085,-150.0,0.00024932,2]
[345576397,1734364245094,-150.0,0.00024933,2]
[345576398,1734364245103,-1500.0,0.00024934,2]
[345576399,1734364245111,-150.0,0.00024938,2]
[345576400,1734364245121,-150.0,0.00024944,2]
[345576401,1734364245130,-150.0,0.00024949,2]
[345576402,1734364245140,-150.0,0.00024955,2]
[345576403,1734364245149,-200.0,0.00024959,2]
[345576404,1734364245158,-150.0,0.00024959,2]
[345576405,1734364245167,-1500.0,0.00024959,2]
[345576406,1734364245176,-150.0,0.00024959,2]
[345576407,1734364245186,-150.0,0.00024959,2]
[345576408,1734364245195,-150.0,0.0002496,2]
[345576409,1734364245204,-150.0,0.0002496,2]
[345576410,1734364245213,-250.0,0.0002497,2]
[345576411,1734364245223,-250.0,0.0002497,2]
[345576412,1734364245232,-300.0,0.0002497,2]
[345576413,1734364245241,-582.01413331,0.0002497,2]
[345576414,1734364245250,-381.8680061,0.00024973,2]
[345576415,1734364245260,-500.36615932,0.00024973,2]
[345576416,1734364245269,-501.80937079,0.00024973,2]
[345576417,1734364245278,-834.45765658,0.00024976,2]
[345576418,1734364245288,-150.0,0.00024976,2]
[345576419,1734364245297,-150.0,0.00024976,2]
[345576420,1734364245306,-173.96154606,0.00024978,2]
[345576421,1734364245316,-1500.0,0.00024979,2]
[345576422,1734364245326,-151.24,0.0002498,2]
[345576423,1734364245335,-150.0,0.00024983,2]
[345576424,1734364245345,-150.0,0.00024984,2]
[345576425,1734364245354,-500.0,0.00024985,4]
[345576426,1734364245364,-375.26289816,0.00024985,4]
[345576427,1734364245374,-500.0,0.00024985,4]
[345576428,1734364245383,-151.24,0.00024985,2]
[345576429,1734364245392,-28358.0,0.00024986,2]
[345576430,1734364245402,-17419.0,0.00024986,2]
[345576431,1734364245411,-22017.0,0.00024986,2]
[345576432,1734364245427,-2000.00000099,0.00024987,31]
[345576433,1734364245437,-150.0,0.00024988,2]
[345576434,1734364245447,-490.55,0.00024989,4]
[345576435,1734364245456,-151.24,0.0002499,2]
[345576436,1734364245465,-878.791002,0.0002499,2]
[345576437,1734364245474,-250000.0,0.0002499,7]
[345576438,1734364245486,-151.24,0.0002499,2]
[345576440,1734364245495,-151.24,0.0002499,2]
[345576443,1734364245504,-151.24,0.0002499,2]
[345576447,1734364245514,-151.24,0.0002499,2]
[345576450,1734364245524,-151.24,0.0002499,2]
[345576453,1734364245533,-151.24,0.0002499,2]
[345576457,1734364245547,-151.24,0.0002499,2]
[345576460,1734364245556,-151.24,0.0002499,2]
[345576462,1734364245566,-151.24,0.0002499,2]
[345576464,1734364245575,-151.24,0.0002499,2]
[345576466,1734364245585,-151.24,0.0002499,2]
[345576467,1734364245594,-151.24,0.0002499,2]
[345576468,1734364245603,-151.24,0.0002499,2]
[345576469,1734364245612,-151.24,0.0002499,2]
[345576470,1734364245622,-151.24,0.0002499,2]
[345576473,1734364245631,-151.24,0.0002499,2]
[345576475,1734364245640,-151.24,0.0002499,2]
[345576477,1734364245650,-878.791002,0.0002499,2]
[345576479,1734364245659,-19850.0,0.0002499,2]
[345576481,1734364245674,-500.0,0.00024994,4]
[345576483,1734364245684,-500.0,0.00024994,4]
[345576485,1734364245694,-500.0,0.00024994,4]
[345576487,1734364245704,-500.0,0.00024994,4]
[345576489,1734364245714,-7635.0104076,0.00024995,2]
[345576491,1734364245723,-6193.4688439,0.00024995,2]
[345576493,1734364245732,-4751.9272801,0.00024995,2]
[345576495,1734364245742,-3310.3857163,0.00024995,2]
[345576497,1734364245752,-1868.8441525,0.00024995,2]
[345576499,1734364245761,-427.3025888,0.00024995,2]
[345576500,1734364245771,-19248.8290557,0.00024995,2]
[345576502,1734364245780,-15614.5200429,0.00024995,2]
[345576504,1734364245790,-11980.21103,0.00024995,2]
[345576506,1734364245799,-8345.9020172,0.00024995,2]
[345576508,1734364245808,-4711.5930043,0.00024995,2]
[345576510,1734364245818,-1077.2839915,0.00024995,2]
[345576512,1734364245827,-2000.0,0.00024999,2]
[345576514,1734364245836,-2000.0,0.00024999,2]
[345576516,1734364245846,-535.77,0.00024999,2]
[345576518,1734364245855,-500.0,0.00024999,4]
[345576520,1734364245864,-500.0,0.00024999,4]
[345576522,1734364245874,-500.0,0.00024999,4]
[345576524,1734364245883,-500.0,0.00024999,4]
[345576526,1734364245892,-500.0,0.00024999,4]
[345576528,1734364245901,-500.0,0.00024999,4]
[345576530,1734364245911,-500.0,0.00024999,4]
[345576532,1734364245928,-500.0,0.00024999,4]
[345576534,1734364245937,-500.0,0.00024999,4]
[345576536,1734364245946,-500.0,0.00024999,4]
[345576538,1734364245955,-500.0,0.00024999,4]
[345576540,1734364245965,-500.0,0.00024999,4]
[345576542,1734364245974,-500.0,0.00024999,4]
[345576544,1734364245983,-500.0,0.00024999,4]
[345576546,1734364245992,-500.0,0.00024999,4]
[345576548,1734364246001,-500.0,0.00024999,4]
[345576550,1734364246010,-459.95442969,0.00024999,4]
[345576552,1734364246020,-5000.0,0.00024999,20]
[345576554,1734364246029,-39031.64,0.00024999,2]
[345576556,1734364246038,-999.0,0.00024999,2]
[345576558,1734364246047,-500.0,0.00024999,4]
[345576560,1734364246057,-500.0,0.00024999,4]
[345576562,1734364246066,-500.0,0.00024999,4]
[345576564,1734364246075,-500.0,0.00024999,4]
[345576566,1734364246084,-500.0,0.00024999,4]
[345576568,1734364246093,-500.0,0.00024999,4]
[345576570,1734364246103,-500.0,0.00024999,4]
[345576572,1734364246111,-500.0,0.00024999,4]
[345576574,1734364246121,-500.0,0.00024999,4]
[345576576,1734364246130,-500.0,0.00024999,4]
[345576578,1734364246139,-560.38379913,0.00024999,4]
[345576580,1734364246148,-500.0,0.00024999,4]
[345576582,1734364246158,-500.0,0.00024999,4]
[345576585,1734364246175,-335.91692261,0.00024999,4]
[345576587,1734364246185,-576.0,0.00024999,2]
[345576589,1734364246194,-394.08110443,0.00024999,2]
[345576590,1734364246204,-349052.2954232,0.00025,4]
[345576591,1734364246213,-166.13352734,0.00025,2]
[345576592,1734364246222,-38191.35702585,0.00025,2]
[345576593,1734364246232,-153.0,0.00025,2]
[345576594,1734364246241,-153.0,0.00025,2]
[345576595,1734364246251,-153.0,0.00025,2]
[345576596,1734364246261,-153.0,0.00025,2]
[345576597,1734364246270,-153.0,0.00025,2]
[345576598,1734364246280,-153.0,0.00025,2]
[345576599,1734364246289,-153.0,0.00025,2]
[345576600,1734364246299,-153.0,0.00025,2]
[345576601,1734364246308,-153.0,0.00025,2]
[345576602,1734364246317,-153.0,0.00025,2]
[345576603,1734364246327,-153.0,0.00025,2]
[345576604,1734364246336,-153.0,0.00025,2]
[345576605,1734364246345,-164.97,0.00025,2]
[345576606,1734364246354,-14659120.07527154,0.00025,2]
[345576607,1734364246497,-5309.0,0.00025,2]
[345576608,1734364246509,-312.925,0.00025,2]
[345576609,1734364246573,-9908.16464903,0.00025,2]
[345576610,1734364246584,-919.97299999,0.00025,2]
[345576611,1734364246600,-19939.26615312,0.00025,2]
[345576612,1734364246611,-10489.1840005,0.00025,2]
[345576613,1734364246626,-212933.15612462,0.00025,2]
[345576614,1734364246640,-10620.683971,0.00025,2]
[345576615,1734364246652,-16560.19806294,0.00025,2]
[345576616,1734364246676,-513.3099998,0.00025,2]
[345576617,1734364246724,-500.0,0.00024657,4]
[345576618,1734364246734,-89.5203778,0.00025,2]
[345576621,1734364248080,-9863.7354937,0.00025,2]
[345576622,1734364248091,-34514.99998,0.00025,2]
[345576623,1734364248102,-101673.64014877,0.00025,2]
[345576624,1734364248113,-5650.0,0.00025,2]
[345576625,1734364248124,-20095.0,0.00025,2]
[345576626,1734364248422,-211402.1355405,0.00025,2]
[345576627,1734364248436,-396.03254,0.00025,2]
[345576628,1734364248449,-75835.95742699,0.00025,2]
[345576629,1734364248460,-16584.83640185,0.00025,2]
[345576630,1734364248533,-911.51115511,0.00025,2]
[345576631,1734364248859,150.0,9.827e-05,2]
[345576632,1734364285434,732.53,0.000225,2]
[345576685,1734364751560,152.07,0.00010137,2]
[345576687,1734364866116,-152.07,0.00017599,2]
[345576688,1734364866137,-300.0,0.00021534,2]
[345576689,1734364866160,-678.44,0.00021841,2]
[345576690,1734364866182,-659.27,0.000225,2]
[345576691,1734364866204,-1099.0,0.00022731,2]
[345576692,1734364866224,-250.0,0.00023254,2]
[345576693,1734364866245,-737.79,0.00023343,2]
[345576694,1734364878946,150.0,0.00022461,2]
[345576700,1734364903657,1000.0,0.00023336,2]
[345576725,1734365017884,593.35,0.000225,2]
[345576726,1734365020057,250.0,0.00023334,2]
[345576729,1734365037610,150.0,0.00023343,2]
[345576730,1734365038448,250.0,0.00023334,2]
[345576731,1734365096405,466.83,0.00023286,2]
[345576733,1734365104424,150.0,0.00022488,4]
[345576734,1734365120413,1069.11782556,0.0002334,2]
[345576735,1734365124565,1099.0,0.00023096,2]
[345576736,1734365190672,9326.32,0.00023288,2]
[345576737,1734365203963,534.01,0.000225,2]
[345576738,1734365225119,-500.0,0.00023415,7]
[345576739,1734365225141,-170.15,0.0002352,2]
[345576740,1734365225163,-500.0,0.00023689,7]
[345576741,1734365225184,-500.545,0.0002375,2]
[345576742,1734365225206,-2000.0,0.00023783,120]
[345576743,1734365225234,-228.76,0.00023896,2]
[345576744,1734365225256,-152.94,0.00023899,2]
[345576745,1734365225276,-716.82496489,0.00023899,2]
[345576746,1734365225297,-1000.0,0.00023899,2]
[345576747,1734365225492,-300.0,0.00023899,2]
[345576748,1734365225514,-60776.6516,0.000239,2]
[345576749,1734365225535,-29710.3045,0.000239,2]
[345576750,1734365225556,-1401.985,0.00023915,5]
[345576751,1734365225578,-500.0,0.00023962,7]
[345576752,1734365225598,-211.36,0.00023963,2]
[345576753,1734365225619,-250.0,0.00023992,2]
[345576754,1734365225639,-164.2,0.00024018,2]
[345576755,1734365225660,-678.44,0.00024104,2]
[345576756,1734365225681,-466.83,0.00024148,2]
[345576757,1734365225702,-151.53,0.00024165,30]
[345576758,1734365225722,-977.16,0.00024235,7]
[345576759,1734365225742,-329.0,0.00024249,2]
[345576760,1734365225764,-674.43462827,0.0002438,2]
[345576761,1734365225785,-3000.0,0.000244,2]
[345576762,1734365225806,-150.0,0.000244,12]
[345576763,1734365225832,-150.0,0.00024408,2]
[345576764,1734365225853,-329.0,0.00024499,2]
[345576765,1734365225874,-295.33742209,0.00024528,2]
[345576766,1734365225895,-295.33742206,0.00024569,2]
[345576767,1734365225915,-3698.9664981,0.000246,2]
[345576768,1734365238129,-4066.4858,0.000245,2]
[345576769,1734365238153,-383.80006474,0.000246,2]
[345576770,1734365354191,175.14526247,0.00021164,2]
[345576771,1734365389178,480.61,0.000225,2]
[345576772,1734365402080,173.7,0.00019056,2]
[345576773,1734365422705,1099.0,0.00023221,2]
[345576793,1734365431830,-150.0,0.00023343,2]
[345576794,1734365431839,-300.0,0.00023798,2]
[345576795,1734365431849,-2371.92430489,0.00023799,2]
[345576796,1734365431917,-494.47620721,0.00023799,2]
[345576797,1734365431929,-14907.7315879,0.00023799,2]
[345576798,1734365431938,-285.956,0.00023799,2]
[345576799,1734365431947,-786.05,0.0002381,2]
[345576800,1734365431957,-951.16,0.00023822,2]
[345576801,1734365431968,-150.0,0.00023967,120]
[345576802,1734365431978,-155.82712623,0.00024027,2]
[345576803,1734365431987,-1510.3457222,0.000246,2]
[345576804,1734365435528,-753.24687,0.000246,2]
[345576876,1734365437816,-118665.64084496,0.000246,2]
[345576877,1734365437830,-295.33742206,0.00024611,2]
[345576878,1734365437842,-5000.0,0.00024628,2]
[345576879,1734365437853,-295.33742206,0.00024652,2]
[345576880,1734365437864,-500.0,0.00024657,4]
[345576881,1734365437876,-500.0,0.00024657,4]
[345576882,1734365437891,-500.0,0.00024657,4]
[345576883,1734365437905,-500.0,0.00024657,4]
[345576884,1734365437918,-500.0,0.00024657,4]
[345576885,1734365437930,-500.0,0.00024657,4]
[345576886,1734365437942,-500.0,0.00024657,4]
[345576887,1734365437953,-500.0,0.00024657,4]
[345576888,1734365437966,-500.0,0.00024657,4]
[345576889,1734365437978,-500.0,0.00024657,4]
[345576890,1734365437989,-500.0,0.00024657,4]
[345576891,1734365438001,-153.3325555,0.00024657,4]
[345576892,1734365438013,-500.0,0.00024657,4]
[345576893,1734365438025,-640.35,0.00024657,4]
[345576894,1734365438037,-500.0,0.00024657,4]
[345576895,1734365438050,-500.0,0.00024657,4]
[345576896,1734365438061,-500.0,0.00024657,4]
[345576897,1734365438072,-500.0,0.00024657,4]
[345576898,1734365438083,-375.26289816,0.00024657,4]
[345576899,1734365438097,-500.0,0.00024657,4]
[345576900,1734365438108,-5820.18,0.00024657,4]
[345576901,1734365438119,-500.0,0.00024657,4]
[345576902,1734365438131,-500.0,0.00024657,4]
[345576903,1734365438143,-295.33742206,0.00024693,2]
[345576904,1734365438155,-200.0,0.000247,2]
[345576905,1734365438167,-7400.0,0.000247,3]
[345576906,1734365438178,-162.7639,0.000247,2]
[345576907,1734365438194,-150.0,0.00024702,2]
[345576908,1734365438205,-300.0,0.0002473,2]
[345576909,1734365438217,-295.33742206,0.00024735,2]
[345576910,1734365438228,-150.0,0.00024735,2]
[345576911,1734365438239,-300.0,0.00024738,2]
[345576912,1734365438256,-1500.0,0.00024738,2]
[345576913,1734365438268,-834.45765658,0.00024738,2]
[345576914,1734365438280,-150.0,0.00024743,2]
[345576916,1734365438292,-329.0,0.00024749,2]
[345576917,1734365438304,-150.0,0.00024756,2]
[345576918,1734365438315,-150.0,0.00024757,2]
[345576919,1734365438326,-150.0,0.00024761,2]
[345576920,1734365438336,-295.33742206,0.00024776,2]
[345576921,1734365438347,-150.0,0.00024787,2]
[345576922,1734365438358,-500.0,0.00024799,2]
[345576923,1734365438368,-100000.0,0.000248,2]
[345576924,1734365438380,-500.0,0.000248,2]
[345576925,1734365438392,-500.0,0.000248,2]
[345576926,1734365438407,-270.69796508,0.000248,2]
[345576927,1734365438418,-150.0,0.00024804,2]
[345576928,1734365438428,-150.0,0.00024804,2]
[345576929,1734365438439,-1910.26,0.00024805,2]
[345576930,1734365438449,-150.0,0.00024809,2]
[345576931,1734365438459,-270.69796508,0.00024811,2]
[345576932,1734365438470,-295.33742206,0.00024817,2]
[345576933,1734365438481,-357.4979698,0.00024818,2]
[345576934,1734365438492,-270.69796508,0.00024822,2]
[345576936,1734365438504,-1500.0,0.00024823,2]
[345576937,1734365438520,-1500.0,0.00024823,2]
[345576938,1734365438531,-940.70936186,0.00024826,10]
[345576939,1734365438541,-528.68081844,0.00024826,10]
[345576940,1734365438552,-1004.74851,0.00024827,10]
[345576941,1734365438564,-44103.61963795,0.00024827,10]
[345576942,1734365438575,-150.0,0.00024828,2]
[345576943,1734365438587,-50735.15504674,0.00024828,10]
[345576944,1734365438598,-2242.77351198,0.00024829,10]
[345576945,1734365438609,-528.68081844,0.00024829,10]
[345576946,1734365438621,-973.86520259,0.00024829,10]
[345576947,1734365438632,-4183.90143809,0.0002483,10]
[345576948,1734365438643,-1471.83200536,0.0002483,10]
[345576949,1734365438658,-2869.56840336,0.0002483,10]
[345576950,1734365438669,-6083.04593527,0.00024831,10]
[345576951,1734365438685,-751.02798837,0.00024831,10]
[345576952,1734365438696,-44103.61963795,0.00024831,10]
[345576953,1734365438707,-6083.04593527,0.00024831,10]
[345576954,1734365438718,-6083.04593527,0.00024832,10]
[345576955,1734365438729,-528.68081844,0.00024832,10]
[345576956,1734365438740,-526.94445426,0.00024832,10]
[345576957,1734365438751,-705.57330037,0.00024832,10]
[345576958,1734365438762,-200.0,0.00024832,10]
[345576959,1734365438774,-10443.25730406,0.00024833,10]
[345576960,1734365438784,-638.3776748,0.00024833,10]
[345576961,1734365438795,-270.69796508,0.00024833,2]
[345576962,1734365438806,-280.4143735,0.00024834,10]
[345576963,1734365438817,-2242.77351198,0.00024834,10]
[345576964,1734365438828,-280.4143735,0.00024834,10]
[345576965,1734365438839,-973.86520259,0.00024834,10]
[345576966,1734365438851,-19841.04279628,0.00024834,10]
[345576967,1734365438862,-440.25996493,0.00024834,10]
[345576968,1734365438873,-462.88170144,0.00024834,10]
[345576969,1734365438885,-200.0,0.00024834,10]
[345576970,1734365438897,-462.88170144,0.00024835,10]
[345576971,1734365438912,-526.94445426,0.00024835,10]
[345576972,1734365438924,-32581.58099999,0.00024835,10]
[345576973,1734365438935,-200.0,0.00024835,10]
[345576974,1734365438947,-19841.04279628,0.00024835,10]
[345576975,1734365438958,-528.68081844,0.00024836,10]
[345576976,1734365438970,-10443.25730406,0.00024836,10]